bitfinex/quotes_SOLUSD_20251116
["timestamp","ask_amount","ask_price","bid_price","bid_amount"]
[1763257271542,7.02229366,138.26,138.22,23.1212]
[1763257271729,7.02229366,138.27,138.22,22.6512]
[1763257271929,7.02229366,138.28,138.23,10.25882769]
[1763257272124,7.02229366,138.32,138.26,25.31462461]
[1763257272125,0.7,138.32,138.26,25.31462461]
[1763257272424,18.07044652,138.35,138.27,9.78882769]
[1763257272425,0.7,138.35,138.27,9.78882769]
[1763257272628,7.02229366,138.32,138.27,32.44002769]
[1763257272927,7.02229366,138.32,138.27,32.91002769]
[1763257273130,7.02229366,138.3,138.27,22.6512]
[1763257273352,7.02229366,138.31,138.27,22.6512]
[1763257273555,7.71229366,138.31,138.27,22.6512]
[1763257273854,7.02229366,138.28,138.25,8.76]
[1763257274060,0.69,138.3,138.22,18.54882769]
[1763257274061,7.02229366,138.26,138.22,18.54882769]
[1763257274263,0.69,138.3,138.22,31.4112]
[1763257274557,7.02229366,138.26,138.22,56.73309803]
[1763257274944,7.02229366,138.24,138.22,8.76]
[1763257275251,7.02229366,138.25,138.22,38.64589752]
[1763257275431,7.02229366,138.26,138.22,38.64589752]
[1763257275631,0.69,138.3,138.23,9.78882769]
[1763257275847,7.02229366,138.28,138.23,9.78882769]
[1763257276064,7.02229366,138.27,138.23,9.78882769]
[1763257276243,7.02229366,138.28,138.25,9.78882769]
[1763257276440,0.69,138.3,138.25,9.78882769]
[1763257276846,7.02229366,138.28,138.25,9.78882769]
[1763257277043,7.02229366,138.27,138.24,7.23379629]
[1763257277363,8.76,138.31,138.24,7.23379629]
[1763257277364,7.02229366,138.28,138.24,7.23379629]
[1763257277555,7.02229366,138.28,138.24,25.31828703]
[1763257278340,7.02229366,138.28,138.24,18.08449074]
[1763257278553,7.02229366,138.25,138.22,29.88603894]
[1763257278754,7.02229366,138.25,138.22,7.23483894]
[1763257279062,7.02229366,138.25,138.23,22.6512]
[1763257279646,7.02229366,138.26,138.23,22.6512]
[1763257279963,0.66,138.27,138.21,7.23492675]
[1763257279964,7.02229366,138.24,138.21,7.23492675]
[1763257280276,0.66,138.26,138.21,7.23492675]
[1763257280454,0.66,138.29,138.22,9.78882769]
[1763257280764,7.02229366,138.25,138.22,9.78882769]
[1763257280952,7.02229366,138.24,138.22,9.78882769]
[1763257281146,25.30730295,138.3,138.22,9.78882769]
[1763257281147,0.66,138.28,138.22,9.78882769]
[1763257281353,7.02229366,138.24,138.21,25.32334292]
[1763257282143,0.66,138.27,138.14,0.47]
[1763257282144,7.02229366,138.22,138.14,0.47]
[1763257282338,7.02229366,138.21,138.15,18.54882769]
[1763257282534,7.02229366,138.21,138.18,22.6512]
[1763257282738,0.66,138.23,138.18,22.6512]
[1763257282961,7.02229366,138.21,138.15,44.3530362]
[1763257283137,7.02229366,138.2,138.18,22.6512]
[1763257283564,7.02229366,138.21,138.18,22.6512]
[1763257284157,7.02229366,138.21,138.19,7.23641363]
[1763257284347,7.02229366,138.21,138.15,55.21137202]
[1763257284348,7.68229366,138.2,138.15,36.6444277]
[1763257284547,7.68229366,138.2,138.15,27.8844277]
[1763257284548,7.02229366,138.17,138.15,27.8844277]
[1763257284766,7.02229366,138.17,138.13,18.09854629]
[1763257284956,7.02229366,138.14,138.11,8.76]
[1763257285168,7.02229366,138.13,138.11,56.75310872]
[1763257285354,0.66,138.15,138.11,25.34190872]
[1763257285549,7.02229366,138.13,138.11,7.24039544]
[1763257285753,0.66,138.15,138.1,7.24105182]
[1763257285754,7.02229366,138.12,138.1,7.24105182]
[1763257286048,7.02229366,138.12,138.09,18.10391944]
[1763257286049,0.66,138.18,138.11,0.47]
[1763257286268,7.02229366,138.16,138.12,22.6512]
[1763257286462,7.02229366,138.19,138.14,22.6512]
[1763257286774,15.80229366,138.21,138.15,7.02229366]
[1763257286955,16.46229366,138.21,138.15,7.02229366]
[1763257287154,7.68229366,138.2,138.15,7.02229366]
[1763257287365,7.68229366,138.2,138.14,29.67349366]
[1763257287549,7.68229366,138.19,138.14,22.6512]
[1763257287742,7.68229366,138.19,138.12,8.5269956]
[1763257287743,7.02229366,138.17,138.12,8.5269956]
[1763257287944,0.66,138.18,138.12,29.67349366]
[1763257288276,7.02229366,138.17,138.13,7.23955693]
[1763257288576,7.02229366,138.18,138.13,42.14957062]
[1763257288876,8.78,138.17,138.13,42.14957062]
[1763257289089,9.44,138.17,138.13,42.14957062]
[1763257290857,7.02229366,138.18,138.13,42.14957062]
[1763257291064,8.76,138.2,138.16,29.67349366]
[1763257291371,8.76,138.2,138.17,7.02229366]
[1763257291682,0.66,138.19,138.16,22.6512]
[1763257292170,7.68229366,138.19,138.14,39.46232135]
[1763257292373,7.68229366,138.19,138.15,7.23850886]
[1763257292573,0.66,138.18,138.15,7.23850886]
[1763257292876,7.02229366,138.16,138.13,7.23955693]
[1763257293255,0.66,138.16,138.13,25.33844927]
[1763257293583,8.76,138.15,138.13,25.33844927]
[1763257294078,8.76,138.15,138.13,7.23955693]
[1763257294369,9.42,138.15,138.13,7.23955693]
[1763257294559,9.42,138.15,138.12,7.24008108]
[1763257294756,8.76,138.15,138.12,7.24008108]
[1763257294960,8.76,138.15,138.07,44.36815865]
[1763257294961,7.02229366,138.13,138.07,0.1]
[1763257295179,0.66,138.12,138.07,7.34246315]
[1763257295356,15.78229366,138.11,138.07,14.36475681]
[1763257295551,7.02229366,138.09,138.07,7.34246315]
[1763257296152,7.68229366,138.08,138.07,0.1]
[1763257297053,7.68229366,138.08,138.02,7.24532676]
[1763257297054,14.70458732,138.08,138.02,7.24532676]
[1763257297276,7.02229366,138.03,137.98,18.1185679]
[1763257297576,0.66,138.07,137.99,22.6512]
[1763257297577,15.78229366,138.02,137.99,22.6512]
[1763257297785,32.36991821,138.08,137.98,22.6512]
[1763257297786,15.78229366,138.01,137.98,22.6512]
[1763257297949,15.78229366,138.01,137.99,22.6512]
[1763257297950,8.78,138.0,137.99,22.6512]
[1763257298583,8.78,138.0,137.99,29.89810194]
[1763257298957,13.85864582,138.0,137.99,7.24690194]
[1763257299154,13.85864582,138.0,137.98,7.2472379]
[1763257299353,0.66,137.99,137.98,7.2472379]
[1763257299555,5.07864582,137.99,137.97,7.34781649]
[1763257299752,8.78,138.0,137.97,7.34781649]
[1763257299951,4.41864582,137.99,137.97,7.34781649]
[1763257300172,5.07864582,137.99,137.97,0.1]
[1763257300385,5.07864582,137.98,137.97,0.1]
[1763257301580,12.32607298,137.98,137.97,0.1]
[1763257301790,0.66,137.97,137.9,38.03028285]
[1763257301968,4.41864582,137.93,137.89,9.78882769]
[1763257302152,8.76,137.92,137.87,4.41864582]
[1763257302572,8.76,137.92,137.88,4.41864582]
[1763257302963,8.76,137.92,137.89,32.44002769]
[1763257303166,8.76,137.92,137.89,9.78882769]
[1763257303382,8.76,137.92,137.89,32.44002769]
[1763257303585,8.76,137.92,137.89,36.85867351]
[1763257303787,8.76,137.92,137.89,32.44002769]
[1763257304588,0.7,137.98,137.92,25.37703015]
[1763257304754,67.67458328,138.11,137.96,4.41864582]
[1763257304755,5.11864582,138.01,137.96,4.41864582]
[1763257304955,9.57864582,138.0,137.95,27.06984582]
[1763257305261,4.41864582,137.97,137.92,57.81705784]
[1763257305465,0.7,137.99,137.95,4.41864582]
[1763257305759,8.78,137.96,137.95,4.41864582]
[1763257306187,9.48,137.96,137.92,48.02823015]
[1763257306487,9.48,137.96,137.89,4.41864582]
[1763257306488,4.41864582,137.94,137.89,4.41864582]
[1763257306674,0.7,137.98,137.92,7.25058004]
[1763257306870,4.41864582,137.96,137.92,7.25058004]
[1763257307091,4.41864582,137.94,137.92,7.25058004]
[1763257307286,4.41864582,137.95,137.92,7.25058004]
[1763257307829,4.41864582,137.93,137.89,7.25205549]
[1763257307965,8.78,137.92,137.89,4.41864582]
[1763257308165,8.78,137.92,137.88,29.90345315]
[1763257308472,4.41864582,137.94,137.88,34.32209897]
[1763257308673,8.78,137.91,137.88,34.32209897]
[1763257308885,5.11864582,137.95,137.89,14.20747351]
[1763257309192,13.19864582,137.94,137.89,14.20747351]
[1763257309489,8.78,137.93,137.89,14.20747351]
[1763257310005,4.41864582,137.9,137.77,165.37]
[1763257310165,8.78,137.89,137.87,4.41864582]
[1763257310362,8.78,137.89,137.84,9.78882769]
[1763257310363,4.41864582,137.93,137.88,9.78882769]
[1763257310564,8.78,137.9,137.88,9.78882769]
[1763257310765,13.19864582,137.9,137.86,7.25373567]
[1763257311262,13.89864582,137.9,137.86,7.25373567]
[1763257311776,0.7,137.89,137.86,25.38807485]
[1763257311978,5.11864582,137.89,137.86,7.25373567]
[1763257312172,5.11864582,137.89,137.78,43.89735964]
[1763257312173,4.41864582,137.88,137.81,7.25636746]
[1763257312403,4.41864582,137.86,137.81,7.25636746]
[1763257312634,4.41864582,137.86,137.78,36.28973726]
[1763257312635,4.41864582,137.84,137.78,7.25742581]
[1763257312905,4.41864582,137.82,137.78,7.25742581]
[1763257313089,4.41864582,137.82,137.77,7.25828481]
[1763257313292,5.11864582,137.81,137.77,6.75828481]
[1763257313472,4.41864582,137.79,137.76,7.25886122]
[1763257313784,8.78,137.78,137.75,7.359371]
[1763257314197,8.78,137.77,137.75,25.50819132]
[1763257314382,8.78,137.78,137.76,4.41864582]
[1763257314705,8.78,137.78,137.75,25.50819132]
[1763257314877,8.78,137.78,137.77,11.67712008]
[1763257315202,8.78,137.78,137.77,7.25847426]
[1763257315578,8.78,137.78,137.77,11.67712008]
[1763257316097,8.78,137.78,137.77,29.82330575]
[1763257317001,0.7,137.88,137.8,9.78882769]
[1763257317176,0.7,137.92,137.86,4.41864582]
[1763257317491,8.78,137.91,137.88,4.41864582]
[1763257317896,5.11864582,137.94,137.89,4.41864582]
[1763257318096,8.78,137.93,137.89,4.41864582]
[1763257318301,9.48,137.94,137.9,4.41864582]
[1763257318504,0.7,137.98,137.93,4.41864582]
[1763257318803,8.78,137.97,137.93,4.41864582]
[1763257319006,8.78,137.97,137.94,11.6681746]
[1763257319176,4.41864582,137.98,137.94,11.6681746]
[1763257319503,4.41864582,137.95,137.9,4.41864582]
[1763257319802,4.41864582,137.95,137.87,9.78882769]
[1763257319803,8.78,137.96,137.92,4.41864582]
[1763257319987,0.7,137.97,137.93,4.41864582]
[1763257320194,0.7,137.96,137.87,17.04203723]
[1763257320503,4.41864582,137.95,137.91,4.41864582]
[1763257320803,8.78,137.95,137.92,4.41864582]
[1763257320998,0.7,137.94,137.9,4.41864582]
[1763257321205,0.7,137.94,137.91,4.41864582]
[1763257321779,0.7,137.94,137.9,4.41864582]
[1763257321983,0.7,137.94,137.84,36.27356514]
[1763257321984,4.41864582,137.91,137.84,9.78882769]
[1763257322207,4.41864582,137.91,137.87,4.41864582]
[1763257322377,5.11864582,137.91,137.87,4.41864582]
[1763257322581,4.41864582,137.93,137.89,4.41864582]
[1763257322823,0.7,137.94,137.91,4.41864582]
[1763257322988,7.24810911,137.97,137.93,4.41864582]
[1763257322989,21.14674192,137.97,137.93,4.41864582]
[1763257323302,21.14674192,137.97,137.91,4.41864582]
[1763257323303,5.11864582,137.96,137.91,4.41864582]
[1763257323694,0.7,137.95,137.91,4.41864582]
[1763257323885,42.6400938,138.04,137.93,4.41864582]
[1763257324091,5.11864582,137.98,137.93,4.41864582]
[1763257324587,9.48,137.97,137.93,4.41864582]
[1763257324803,22.6512,138.0,137.95,4.41864582]
[1763257325005,13.19864582,138.02,137.97,11.66615558]
[1763257325307,4.41864582,138.0,137.96,4.41864582]
[1763257325481,4.41864582,138.0,137.95,25.3702345]
[1763257325804,0.7,137.99,137.97,4.41864582]
[1763257325978,8.78,138.02,137.98,4.41864582]
[1763257326182,4.41864582,138.06,138.01,4.41864582]
[1763257326403,0.7,138.07,138.04,4.41864582]
[1763257326616,8.78,138.08,138.04,4.41864582]
[1763257326809,8.78,138.08,137.97,4.41864582]
[1763257326810,4.41864582,138.05,137.97,4.41864582]
[1763257327115,0.7,138.07,138.03,4.41864582]
[1763257327316,0.7,138.07,138.0,9.78882769]
[1763257327519,0.7,138.07,138.04,4.41864582]
[1763257327702,0.7,138.1,138.06,4.41864582]
[1763257328022,0.7,138.13,138.09,4.41864582]
[1763257328319,4.41864582,138.11,138.07,4.41864582]
[1763257328519,0.7,138.13,138.05,4.41864582]
[1763257328520,4.41864582,138.1,138.05,4.41864582]
[1763257328825,4.41864582,138.11,138.06,4.41864582]
[1763257329005,4.41864582,138.11,138.07,7.24270297]
[1763257329324,4.41864582,138.08,138.0,7.24637681]
[1763257329524,4.41864582,138.05,138.01,4.41864582]
[1763257329705,9.48,138.09,138.0,11.66502263]
[1763257329908,9.48,138.09,138.0,7.24637681]
[1763257329909,4.41864582,138.03,138.0,7.24637681]
[1763257330226,23.3512,138.08,138.0,7.24637681]
[1763257330227,4.41864582,138.04,138.0,7.24637681]
[1763257330518,4.41864582,138.03,137.98,22.53715701]
[1763257330910,5.11864582,138.03,137.99,7.24666267]
[1763257331114,4.41864582,138.01,137.97,7.24779005]
[1763257331304,4.41864582,137.98,137.94,4.41864582]
[1763257331723,5.11864582,137.97,137.92,22.54468261]
[1763257332023,4.41864582,138.0,137.95,4.41864582]
[1763257332210,4.41864582,137.99,137.95,4.41864582]
[1763257332397,5.11864582,137.99,137.94,4.41864582]
[1763257332800,0.7,137.99,137.95,14.20747351]
[1763257333110,0.7,137.99,137.96,7.24847781]
[1763257333305,4.41864582,138.0,137.96,7.24847781]
[1763257333543,0.7,138.0,137.97,4.41864582]
[1763257333736,0.7,137.99,137.96,7.24847781]
[1763257334223,5.11864582,137.99,137.95,7.24898011]
[1763257334397,4.41864582,137.98,137.94,11.66801765]
[1763257334597,5.11864582,137.98,137.94,7.24937183]
[1763257334829,5.11864582,137.97,137.94,7.24937183]
[1763257335032,0.7,137.97,137.94,7.24937183]
[1763257335802,16.72615846,138.01,137.94,29.7918396]
[1763257336010,4.41864582,137.99,137.95,4.41864582]
[1763257336324,4.41864582,137.99,137.94,29.7918396]
[1763257336634,0.7,137.98,137.94,29.7918396]
[1763257337034,4.41864582,137.95,137.88,0.67]
[1763257337236,4.41864582,137.95,137.9,4.41864582]
[1763257337435,4.41864582,137.95,137.89,17.0409852]
[1763257337436,4.41864582,137.94,137.89,29.8002963]
[1763257337606,5.11864582,137.94,137.89,29.8002963]
[1763257337923,0.7,137.94,137.9,4.41864582]
[1763257338704,4.41864582,137.93,137.88,11.67119581]
[1763257339117,0.7,137.92,137.88,29.80290454]
[1763257339523,9.48,137.96,137.9,4.41864582]
[1763257339715,4.41864582,137.94,137.89,4.41864582]
[1763257340109,13.89864582,137.94,137.89,4.41864582]
[1763257340844,17.67458328,138.11,137.93,4.41864582]
[1763257340845,18.11591746,138.01,137.93,4.41864582]
[1763257341023,4.41864582,137.98,137.94,4.41864582]
[1763257341215,0.7,137.97,137.94,4.41864582]
[1763257341412,9.48,138.01,137.96,4.41864582]
[1763257341620,0.7,138.01,137.97,4.41864582]
[1763257341817,13.89864582,138.01,137.96,4.41864582]
[1763257342314,4.41864582,138.02,137.97,4.41864582]
[1763257342518,0.7,138.03,137.99,4.41864582]
[1763257342718,0.7,138.03,138.0,11.66502263]
[1763257342947,8.78,138.05,138.01,4.41864582]
[1763257343304,13.89864582,138.05,138.0,11.66502263]
[1763257343512,13.89864582,138.05,138.0,4.41864582]
[1763257343740,0.7,138.05,138.01,4.41864582]
[1763257344027,4.41864582,138.03,137.99,4.41864582]
[1763257344436,5.11864582,138.03,137.98,4.41864582]
[1763257344741,5.11864582,138.03,137.99,7.24668278]
[1763257344919,0.7,138.02,137.99,7.24668278]
[1763257345818,7.24444582,138.04,137.99,11.6653286]
[1763257345819,11.66309164,138.04,137.99,11.6653286]
[1763257346025,0.7,138.03,137.99,11.6653286]
[1763257346730,4.41864582,138.01,137.97,4.41864582]
[1763257346903,0.7,138.0,137.97,7.24795245]
[1763257347530,0.7,138.0,137.93,22.6512]
[1763257347703,4.41864582,137.96,137.91,4.41864582]
[1763257347903,5.11864582,138.0,137.95,4.41864582]
[1763257348138,8.78,138.03,137.99,11.66509477]
[1763257348433,0.7,138.06,138.02,4.41864582]
[1763257348605,9.48,138.06,138.02,4.41864582]
[1763257350130,8.78,138.06,138.02,4.41864582]
[1763257350319,13.19864582,138.06,138.01,4.41864582]
[1763257350524,0.7,138.05,138.01,4.41864582]
[1763257350730,0.7,138.05,137.99,28.57541662]
[1763257350920,0.7,138.05,138.01,4.41864582]
[1763257351825,0.7,138.05,138.01,11.66414118]
[1763257352606,0.7,138.05,137.97,4.41864582]
[1763257352607,4.41864582,138.02,137.98,7.24724983]
[1763257352806,4.41864582,138.02,137.98,11.66589565]
[1763257353037,5.11864582,138.02,137.98,11.66589565]
[1763257353839,4.41864582,138.04,137.99,4.41864582]
[1763257354031,0.7,138.08,138.03,4.41864582]
[1763257354231,4.41864582,138.07,138.03,4.41864582]
[1763257354446,13.87864582,138.08,138.03,4.41864582]
[1763257354626,5.11864582,138.1,138.05,4.41864582]
[1763257354829,8.76,138.1,138.06,4.41864582]
[1763257355030,0.7,138.12,138.07,4.41864582]
[1763257355031,5.11864582,138.12,138.07,4.41864582]
[1763257355357,0.7,138.12,138.09,4.41864582]
[1763257355517,0.7,138.12,138.04,14.87747351]
[1763257355518,0.7,138.12,138.08,4.41864582]
[1763257356053,17.42,138.15,138.1,4.41864582]
[1763257356054,13.17864582,138.14,138.1,4.41864582]
[1763257356359,8.76,138.15,138.11,4.41864582]
[1763257356516,0.9,138.2,138.12,22.6512]
[1763257356717,10.19864582,138.19,138.14,4.41864582]
[1763257356931,4.41864582,138.18,138.14,4.41864582]
[1763257357117,4.41864582,138.15,138.1,4.41864582]
[1763257357341,4.41864582,138.14,138.1,4.41864582]
[1763257357522,0.7,138.17,138.09,25.34578897]
[1763257357523,5.11864582,138.17,138.12,4.41864582]
[1763257357718,5.11864582,138.16,138.11,4.41864582]
[1763257357922,9.46,138.16,138.12,7.24008108]
[1763257358222,0.7,138.15,138.11,11.65905885]
[1763257359255,0.7,138.15,138.1,11.65974436]
[1763257359256,5.11864582,138.15,138.1,11.65974436]
[1763257359426,0.7,138.14,138.11,4.41864582]
[1763257359849,4.41864582,138.16,138.11,11.65910099]
[1763257360025,0.7,138.15,138.12,4.41864582]
[1763257360820,0.7,138.15,138.11,7.24045517]
[1763257361123,0.7,138.15,138.12,7.01836872]
[1763257361731,0.7,138.15,138.11,7.01836872]
[1763257361946,7.01836872,138.14,138.09,14.26002271]
[1763257362171,7.01836872,138.11,138.07,14.26105228]
[1763257362462,22.6512,138.18,138.07,14.26105228]
[1763257362463,0.9,138.2,138.1,32.44002769]
[1763257362759,0.2,138.2,138.14,9.78882769]
[1763257362966,0.2,138.2,138.19,7.01836872]
[1763257363152,0.2,138.2,138.19,14.25478235]
[1763257363728,1e-08,138.2,138.19,24.71361004]
[1763257363939,7.71836872,138.29,138.21,32.44002769]
[1763257364162,0.7,138.29,138.21,39.45839641]
[1763257364355,0.7,138.28,138.21,40.12839641]
[1763257364553,7.71836872,138.28,138.21,40.12839641]
[1763257365142,0.7,138.24,138.17,8.76]
[1763257365371,0.9,138.22,138.18,7.01836872]
[1763257365541,0.9,138.22,138.19,7.01836872]
[1763257366266,0.2,138.22,138.19,0.67]
[1763257366570,0.2,138.22,138.18,9.78882769]
[1763257366571,0.2,138.22,138.2,7.01836872]
[1763257367059,0.2,138.22,138.21,7.01836872]
[1763257367375,0.2,138.22,138.2,7.23576333]
[1763257367544,0.2,138.22,138.21,7.01836872]
[1763257368264,0.2,138.22,138.19,0.67]
[1763257368562,0.9,138.22,138.18,14.25529401]
[1763257368861,0.9,138.22,138.19,7.01836872]
[1763257369054,0.7,138.21,138.19,7.01836872]
[1763257369661,0.7,138.21,138.19,14.25475369]
[1763257369962,0.7,138.21,138.16,7.01836872]
[1763257369963,14.95381847,138.21,138.16,7.01836872]
[1763257370260,7.01836872,138.2,138.15,7.01836872]
[1763257370465,7.71836872,138.2,138.15,7.01836872]
[1763257370657,0.7,138.19,138.15,7.01836872]
[1763257371442,7.91836872,138.22,138.17,14.25582981]
[1763257371634,0.9,138.22,138.18,7.01836872]
[1763257371841,0.9,138.22,138.19,7.01836872]
[1763257372764,0.2,138.22,138.19,7.01836872]
[1763257372946,0.7,138.21,138.16,7.01836872]
[1763257373156,0.7,138.21,138.17,7.01836872]
[1763257373342,7.71836872,138.21,138.17,7.01836872]
[1763257373741,0.7,138.2,138.17,7.23708697]
[1763257373969,0.7,138.2,138.17,14.25545569]
[1763257374276,0.7,138.2,138.17,7.23708697]
[1763257374772,0.7,138.2,138.16,14.25589327]
[1763257374946,7.01836872,138.19,138.14,7.23894515]
[1763257375148,7.01836872,138.19,138.15,7.01836872]
[1763257375453,0.7,138.18,138.13,29.89074022]
[1763257375655,7.01836872,138.16,138.11,7.01836872]
[1763257375865,0.7,138.18,138.14,7.01836872]
[1763257376246,65.84047503,138.24,138.12,10.45882769]
[1763257376247,7.01836872,138.2,138.12,10.45882769]
[1763257376451,0.7,138.21,138.17,7.01836872]
[1763257376867,0.7,138.21,138.18,7.01836872]
[1763257377571,0.7,138.21,138.15,10.45882769]
[1763257377764,0.7,138.21,138.17,14.25569706]
[1763257378455,0.7,138.21,138.18,7.01836872]
[1763257378651,0.7,138.21,138.17,25.33098108]
[1763257378868,0.7,138.21,138.17,14.25569706]
[1763257379867,0.2,138.22,138.18,16.80719641]
[1763257380071,0.9,138.22,138.19,7.01836872]
[1763257380381,0.2,138.22,138.21,7.01836872]
[1763257380959,0.9,138.22,138.2,7.01836872]
[1763257381258,7.01836872,138.21,138.17,7.23732834]
[1763257381574,7.71836872,138.21,138.17,7.23732834]
[1763257381748,0.7,138.2,138.16,14.25621836]
[1763257381950,0.7,138.2,138.17,7.01836872]
[1763257382571,7.01836872,138.19,138.14,14.25726238]
[1763257382762,7.71836872,138.2,138.15,7.01836872]
[1763257382972,7.01836872,138.19,138.15,7.01836872]
[1763257383170,7.71836872,138.19,138.15,7.01836872]
[1763257383371,0.7,138.18,138.15,7.01836872]
[1763257383552,7.71836872,138.18,138.13,25.33844927]
[1763257383757,7.71836872,138.18,138.13,14.25792565]
[1763257384081,7.71836872,138.17,138.12,7.01836872]
[1763257384373,7.01836872,138.16,138.11,25.34207971]
[1763257384577,7.71836872,138.16,138.11,32.36044843]
[1763257384762,0.7,138.15,138.11,32.36044843]
[1763257385275,0.7,138.15,138.13,7.23955693]
[1763257385575,8.74,138.19,138.14,7.01836872]
[1763257385769,8.74,138.19,138.16,7.01836872]
[1763257385969,0.7,138.2,138.14,0.67]
[1763257385970,0.7,138.2,138.17,7.01836872]
[1763257386177,7.21836872,138.22,138.19,7.01836872]
[1763257386178,0.2,138.22,138.19,7.01836872]
[1763257386470,0.9,138.22,138.19,7.01836872]
[1763257386854,0.9,138.22,138.18,7.01836872]
[1763257387456,0.9,138.22,138.19,14.25478235]
[1763257387879,0.2,138.22,138.21,7.01836872]
[1763257388577,0.2,138.22,138.2,7.01836872]
[1763257388765,0.2,138.22,138.19,14.25478235]
[1763257389362,0.9,138.22,138.19,7.23641363]
[1763257390885,0.2,138.22,138.2,7.01836872]
[1763257391086,0.2,138.22,138.21,16.80719641]
[1763257391382,1e-08,138.22,138.21,17.47719641]
[1763257391568,1e-08,138.22,138.21,24.71256288]
[1763257392569,1e-08,138.22,138.21,24.04256288]
[1763257392770,1e-08,138.22,138.21,7.01836872]
[1763257392970,1e-08,138.22,138.21,39.45839641]
[1763257393175,1e-08,138.22,138.21,40.11839641]
[1763257394076,1e-08,138.22,138.21,47.35376288]
[1763257394394,1e-08,138.22,138.21,56.09376288]
[1763257394804,1e-08,138.22,138.21,33.44256288]
[1763257394969,0.2,138.36,138.29,7.01836872]
[1763257395162,0.71,138.32,138.28,7.01836872]
[1763257395367,7.01836872,138.31,138.26,7.01836872]
[1763257395580,7.01836872,138.3,138.26,7.01836872]
[1763257395893,7.01836872,138.28,138.23,7.01836872]
[1763257396106,0.71,138.27,138.24,14.25216501]
[1763257396670,0.71,138.27,138.23,14.25246726]
[1763257396989,0.71,138.27,138.22,14.25285996]
[1763257396990,14.46075127,138.27,138.22,14.25285996]
[1763257397199,7.44238255,138.27,138.23,7.01836872]
[1763257397373,14.25075127,138.27,138.23,7.01836872]
[1763257397692,14.25075127,138.27,138.22,7.23449124]
[1763257397693,7.01836872,138.28,138.24,7.01836872]
[1763257397908,7.01836872,138.27,138.22,7.23449124]
[1763257398092,7.23188214,138.28,138.23,7.01836872]
[1763257398266,7.01836872,138.27,138.23,14.25231391]
[1763257398463,7.01836872,138.27,138.19,0.72]
[1763257398464,7.01836872,138.26,138.19,0.72]
[1763257398780,7.01836872,138.24,138.19,7.01836872]
[1763257398981,7.01836872,138.24,138.18,0.72]
[1763257399191,0.71,138.24,138.18,0.72]
[1763257399392,7.01836872,138.22,138.15,0.72]
[1763257399584,7.72836872,138.23,138.18,7.01836872]
[1763257399793,7.72836872,138.23,138.19,7.01836872]
[1763257400168,7.01836872,138.24,138.19,14.25478235]
[1763257400379,14.25167959,138.25,138.2,7.73836872]
[1763257400605,7.01836872,138.24,138.2,7.01836872]
[1763257400780,7.01836872,138.22,138.18,14.25530488]
[1763257400983,7.01836872,138.21,138.16,7.23766641]
[1763257401298,7.01836872,138.21,138.17,7.01836872]
[1763257401595,7.72836872,138.21,138.17,7.01836872]
[1763257401805,0.71,138.2,138.17,7.01836872]
[1763257402178,0.71,138.21,138.19,7.23633517]
[1763257402391,0.71,138.21,138.17,7.01836872]
[1763257402392,0.71,138.2,138.17,7.01836872]
[1763257404283,7.01836872,138.19,138.14,7.23886738]
[1763257404605,7.72836872,138.18,138.14,14.2572361]
[1763257404776,0.71,138.18,138.14,14.2572361]
[1763257404980,7.72836872,138.17,138.13,14.2577461]
[1763257405393,0.71,138.16,138.13,14.2577461]
[1763257405800,0.71,138.16,138.06,7.24322758]
[1763257405801,7.01836872,138.14,138.06,7.24322758]
[1763257406001,7.01836872,138.14,138.05,0.82]
[1763257406002,7.01836872,138.12,138.08,7.01836872]
[1763257406202,7.01836872,138.11,138.07,7.01836872]
[1763257406410,7.01836872,138.11,138.08,7.24217844]
[1763257406606,7.72836872,138.1,138.05,25.22774937]
[1763257406811,7.01836872,138.08,138.05,0.1]
[1763257406983,7.72836872,138.09,138.05,7.34360292]
[1763257407385,0.71,138.08,138.05,7.34360292]
[1763257407594,0.71,138.08,138.05,0.1]
[1763257407794,7.72836872,138.08,138.05,0.1]
[1763257407994,7.01836872,138.07,138.05,0.1]
[1763257408201,7.72836872,138.07,138.05,0.1]
[1763257410217,0.71,138.07,138.05,0.1]
[1763257410395,7.01836872,138.1,138.05,14.36212098]
[1763257410710,0.71,138.09,138.05,14.36212098]
[1763257411400,0.71,138.09,138.05,32.47150163]